[Event "Early-Titled-Tuesday-Blitz-October-17-2023"]
[Site "Chess.com"]
[Date "2023.10.17"]
[Round "2"]
[White "Martial2008"]
[Black "Zhigalko_Sergei"]
[Result "0-1"]
[WhiteElo "2613"]
[BlackElo "2933"]
[TimeControl "180+1"]
[EndTime "8:19:44 PDT"]
[Termination "Zhigalko_Sergei won by resignation"]

1. d4 {[%clk 0:03:00.9]} 1... Nf6 {[%clk 0:02:59]} 2. Nf3 {[%clk 0:02:57.6]}
2... e6 {[%clk 0:02:59.2]} 3. Bg5 {[%clk 0:02:58]} 3... h6 {[%clk 0:02:59.1]} 4.
Bh4 {[%clk 0:02:58]} 4... b6 {[%clk 0:02:59.1]} 5. Nbd2 {[%clk 0:02:56.1]} 5...
Bb7 {[%clk 0:02:59.2]} 6. e3 {[%clk 0:02:56.3]} 6... Be7 {[%clk 0:02:59.1]} 7.
Bd3 {[%clk 0:02:55.5]} 7... d6 {[%clk 0:02:59.5]} 8. Bxf6 {[%clk 0:02:52.7]}
8... Bxf6 {[%clk 0:02:59.7]} 9. c3 {[%clk 0:02:53.3]} 9... Nd7 {[%clk
0:02:59.1]} 10. Qe2 {[%clk 0:02:52]} 10... a6 {[%clk 0:02:58.6]} 11. h4 {[%clk
0:02:47.6]} 11... c5 {[%clk 0:02:57.3]} 12. O-O-O {[%clk 0:02:43.4]} 12... Qc7
{[%clk 0:02:56]} 13. Kb1 {[%clk 0:02:42.8]} 13... b5 {[%clk 0:02:56.1]} 14. Rc1
{[%clk 0:02:39.2]} 14... O-O-O {[%clk 0:02:41]} 15. Rhd1 {[%clk 0:02:34.2]}
15... Kb8 {[%clk 0:02:41.2]} 16. a3 {[%clk 0:02:29.9]} 16... c4 {[%clk
0:02:35.8]} 17. Bc2 {[%clk 0:02:29.7]} 17... Rhe8 {[%clk 0:02:26.2]} 18. e4
{[%clk 0:02:28]} 18... Be7 {[%clk 0:02:26.6]} 19. g3 {[%clk 0:02:24.5]} 19... d5
{[%clk 0:02:07.7]} 20. e5 {[%clk 0:02:22.7]} 20... a5 {[%clk 0:02:07.9]} 21. Ne1
{[%clk 0:01:48.7]} 21... Qb6 {[%clk 0:01:58.6]} 22. Ka2 {[%clk 0:01:31.5]} 22...
Bc6 {[%clk 0:01:43.1]} 23. b4 {[%clk 0:01:18.2]} 23... cxb3+ {[%clk 0:01:41.3]}
24. Nxb3 {[%clk 0:01:15]} 24... Rc8 {[%clk 0:01:36.2]} 25. Nd3 {[%clk
0:01:05.7]} 25... Rc7 {[%clk 0:01:29.6]} 26. Qe3 {[%clk 0:01:04.4]} 26... Bb7
{[%clk 0:01:28.2]} 27. Bb1 {[%clk 0:01:03.4]} 27... Rec8 {[%clk 0:01:27.8]} 28.
Kb2 {[%clk 0:00:58.8]} 28... Ba6 {[%clk 0:01:18.1]} 29. Ba2 {[%clk 0:00:51.6]}
29... Rc6 {[%clk 0:01:11.7]} 30. f4 {[%clk 0:00:42.6]} 30... Qc7 {[%clk
0:01:11.9]} 31. Qd2 {[%clk 0:00:41.7]} 31... h5 {[%clk 0:00:51.3]} 32. Rc2
{[%clk 0:00:40.6]} 32... g6 {[%clk 0:00:49.5]} 33. Rb1 {[%clk 0:00:39.9]} 33...
Ka8 {[%clk 0:00:48.6]} 34. Kc1 {[%clk 0:00:39.3]} 34... Bxa3+ {[%clk 0:00:48.3]}
35. Kd1 {[%clk 0:00:39.4]} 35... b4 {[%clk 0:00:25.6]} 36. Ndc5 {[%clk
0:00:34.8]} 36... Nxc5 {[%clk 0:00:22.7]} 37. Nxc5 {[%clk 0:00:35.7]} 37... bxc3
{[%clk 0:00:22.5]} 38. Rxc3 {[%clk 0:00:12.7]} 38... Bxc5 {[%clk 0:00:20.5]} 39.
Rbc1 {[%clk 0:00:10]} 39... Qa7 {[%clk 0:00:04.1]} 40. Qc2 {[%clk 0:00:05.9]}
40... Bc4 {[%clk 0:00:03.7]} 41. Bxc4 {[%clk 0:00:05.7]} 41... Bb4 {[%clk
0:00:03.9]} 42. Qa4 {[%clk 0:00:01.7]} 42... Rxc4 {[%clk 0:00:03.6]} 43. Rxc4
{[%clk 0:00:02]} 43... dxc4 {[%clk 0:00:04.4]} 44. Qb5 {[%clk 0:00:02.2]} 44...
Qxd4+ {[%clk 0:00:04.5]} 45. Kc2 {[%clk 0:00:03]} 45... Qd3+ {[%clk 0:00:04.6]}
46. Kb2 {[%clk 0:00:03.2]} 46... Qb3+ {[%clk 0:00:05]} 47. Ka1 {[%clk
0:00:03.3]} 47... Bc3+ {[%clk 0:00:05.9]} 48. Rxc3 {[%clk 0:00:02.8]} 48... Qxb5
{[%clk 0:00:06.6]} 49. Rb3 {[%clk 0:00:03.2]} 49... Qxb3 {[%clk 0:00:06.2]} 0-1

[Event "Early-Titled-Tuesday-Blitz-October-17-2023"]
[Site "Chess.com"]
[Date "2023.10.17"]
[Round "2"]
[White "ylr5000"]
[Black "Yeremyan_ChessMate"]
[Result "0-1"]
[WhiteElo "2536"]
[BlackElo "2724"]
[TimeControl "180+1"]
[EndTime "8:19:44 PDT"]
[Termination "Yeremyan_ChessMate won by resignation"]

1. d4 {[%clk 0:02:59.9]} 1... Nf6 {[%clk 0:02:59.6]} 2. c4 {[%clk 0:02:59.7]}
2... g6 {[%clk 0:03:00.3]} 3. Nc3 {[%clk 0:02:59.8]} 3... d5 {[%clk 0:03:01]} 4.
cxd5 {[%clk 0:02:59.6]} 4... Nxd5 {[%clk 0:03:01.7]} 5. e4 {[%clk 0:03:00.3]}
5... Nxc3 {[%clk 0:03:01.9]} 6. bxc3 {[%clk 0:03:01.2]} 6... Bg7 {[%clk
0:03:02.7]} 7. Bc4 {[%clk 0:03:01.8]} 7... O-O {[%clk 0:03:03.6]} 8. Ne2 {[%clk
0:03:02.2]} 8... c5 {[%clk 0:03:04.4]} 9. O-O {[%clk 0:03:01.1]} 9... Nc6 {[%clk
0:03:05.1]} 10. Be3 {[%clk 0:03:01.5]} 10... b6 {[%clk 0:03:05.8]} 11. Qd2
{[%clk 0:03:00.3]} 11... Na5 {[%clk 0:03:05.6]} 12. Bd3 {[%clk 0:03:00]} 12...
Bb7 {[%clk 0:03:01.8]} 13. Bh6 {[%clk 0:02:59.5]} 13... Rc8 {[%clk 0:02:55.8]}
14. d5 {[%clk 0:02:49.4]} 14... Bxh6 {[%clk 0:02:42.5]} 15. Qxh6 {[%clk
0:02:48.8]} 15... e6 {[%clk 0:02:43.2]} 16. c4 {[%clk 0:02:48.2]} 16... exd5
{[%clk 0:02:43.7]} 17. exd5 {[%clk 0:02:47.6]} 17... Qf6 {[%clk 0:02:43.9]} 18.
Ng3 {[%clk 0:02:38.1]} 18... Rce8 {[%clk 0:02:44.5]} 19. Ne4 {[%clk 0:02:31.5]}
19... Qd4 {[%clk 0:02:39.1]} 20. Ng5 {[%clk 0:02:30.8]} 20... Qg7 {[%clk
0:02:38.8]} 21. Qh4 {[%clk 0:02:29.5]} 21... Bc8 {[%clk 0:02:17.5]} 22. Rae1
{[%clk 0:01:47.6]} 22... Rxe1 {[%clk 0:01:07.9]} 23. Rxe1 {[%clk 0:01:48.5]}
23... Nb7 {[%clk 0:01:04.1]} 24. Ne4 {[%clk 0:01:41.7]} 24... f5 {[%clk
0:01:04]} 25. Ng5 {[%clk 0:01:41.4]} 25... Nd6 {[%clk 0:01:01.7]} 26. h3 {[%clk
0:01:37.4]} 26... Bd7 {[%clk 0:00:51.1]} 27. Ne6 {[%clk 0:01:30.1]} 27... Qc3
{[%clk 0:00:49.4]} 28. Re3 {[%clk 0:01:24.4]} 28... Qa1+ {[%clk 0:00:44.4]} 29.
Kh2 {[%clk 0:01:24]} 29... Re8 {[%clk 0:00:41.6]} 30. Qf4 {[%clk 0:01:16.6]}
30... Nf7 {[%clk 0:00:36.6]} 31. Bxf5 {[%clk 0:01:05]} 31... Qf6 {[%clk
0:00:31.3]} 32. Bg4 {[%clk 0:00:53.2]} 32... Qxf4+ {[%clk 0:00:24.9]} 33. Nxf4
{[%clk 0:00:54.1]} 33... Rxe3 {[%clk 0:00:25.3]} 34. fxe3 {[%clk 0:00:54.6]}
34... Bxg4 {[%clk 0:00:26.1]} 35. hxg4 {[%clk 0:00:55.3]} 35... Ne5 {[%clk
0:00:26.8]} 36. Kg3 {[%clk 0:00:41.3]} 36... Nxc4 {[%clk 0:00:26.3]} 37. Kf3
{[%clk 0:00:42]} 37... Ne5+ {[%clk 0:00:26.3]} 38. Ke4 {[%clk 0:00:40.6]} 38...
Nxg4 {[%clk 0:00:26.5]} 39. d6 {[%clk 0:00:40.9]} 39... Kf7 {[%clk 0:00:26.6]}
40. Kd5 {[%clk 0:00:40.2]} 40... Nxe3+ {[%clk 0:00:22.6]} 41. Kc6 {[%clk
0:00:40.7]} 41... Ng4 {[%clk 0:00:23.3]} 42. d7 {[%clk 0:00:38.2]} 42... Ne5+
{[%clk 0:00:23.5]} 43. Kc7 {[%clk 0:00:39]} 43... Nxd7 {[%clk 0:00:23.1]} 44.
Kxd7 {[%clk 0:00:39.9]} 44... c4 {[%clk 0:00:23.8]} 45. Nd5 {[%clk 0:00:37.8]}
45... h5 {[%clk 0:00:23]} 46. Kc6 {[%clk 0:00:36.1]} 46... Ke6 {[%clk
0:00:23.3]} 47. Nc3 {[%clk 0:00:33.9]} 47... Ke5 {[%clk 0:00:21.4]} 48. Kb5
{[%clk 0:00:30.9]} 48... Kd4 {[%clk 0:00:21.6]} 49. Ne2+ {[%clk 0:00:30.5]}
49... Ke3 {[%clk 0:00:20.1]} 50. Nc3 {[%clk 0:00:31.2]} 50... g5 {[%clk
0:00:20.1]} 51. Kxc4 {[%clk 0:00:30.8]} 51... g4 {[%clk 0:00:20.8]} 52. Nd5+
{[%clk 0:00:28.4]} 52... Kf2 {[%clk 0:00:19.3]} 53. Nf4 {[%clk 0:00:26.8]} 53...
h4 {[%clk 0:00:19.9]} 54. Kd5 {[%clk 0:00:24.8]} 54... Kg3 {[%clk 0:00:20.6]}
55. Ke4 {[%clk 0:00:25.4]} 55... b5 {[%clk 0:00:20.4]} 56. a3 {[%clk 0:00:23.8]}
56... a5 {[%clk 0:00:20.8]} 57. Ng6 {[%clk 0:00:23.5]} 57... b4 {[%clk
0:00:20.7]} 58. axb4 {[%clk 0:00:23.6]} 58... axb4 {[%clk 0:00:21.4]} 59. Kd3
{[%clk 0:00:24]} 59... h3 {[%clk 0:00:19.4]} 60. gxh3 {[%clk 0:00:24]} 60...
gxh3 {[%clk 0:00:20]} 61. Ne7 {[%clk 0:00:20.1]} 61... h2 {[%clk 0:00:20.5]} 62.
Nf5+ {[%clk 0:00:21]} 62... Kf4 {[%clk 0:00:20.6]} 63. Nd4 {[%clk 0:00:19.3]}
63... h1=Q {[%clk 0:00:20.4]} 64. Ne2+ {[%clk 0:00:19.6]} 64... Ke5 {[%clk
0:00:21.1]} 65. Kc4 {[%clk 0:00:19.5]} 65... Qe4+ {[%clk 0:00:21.4]} 0-1

[Event "Early-Titled-Tuesday-Blitz-October-17-2023"]
[Site "Chess.com"]
[Date "2023.10.17"]
[Round "2"]
[White "Road2GM3000"]
[Black "Goryachkina"]
[Result "1-0"]
[WhiteElo "2437"]
[BlackElo "2653"]
[TimeControl "180+1"]
[EndTime "8:19:48 PDT"]
[Termination "Road2GM3000 won on time"]

1. d4 {[%clk 0:02:52.6]} 1... Nf6 {[%clk 0:02:59.3]} 2. c4 {[%clk 0:02:52.8]}
2... e6 {[%clk 0:02:59.6]} 3. Nc3 {[%clk 0:02:53.2]} 3... Bb4 {[%clk 0:02:59.2]}
4. Nf3 {[%clk 0:02:53.9]} 4... d5 {[%clk 0:02:58.1]} 5. cxd5 {[%clk 0:02:53.9]}
5... exd5 {[%clk 0:02:57.9]} 6. Bg5 {[%clk 0:02:54.6]} 6... h6 {[%clk
0:02:54.3]} 7. Bh4 {[%clk 0:02:54.4]} 7... O-O {[%clk 0:02:50.9]} 8. e3 {[%clk
0:02:54.4]} 8... Bf5 {[%clk 0:02:45]} 9. Qb3 {[%clk 0:02:51.3]} 9... Bxc3+
{[%clk 0:02:23.8]} 10. bxc3 {[%clk 0:02:52.2]} 10... Nbd7 {[%clk 0:02:17.5]} 11.
Be2 {[%clk 0:02:37.8]} 11... c5 {[%clk 0:02:14]} 12. O-O {[%clk 0:02:36.3]}
12... Qb6 {[%clk 0:02:05.4]} 13. Qd1 {[%clk 0:02:11.2]} 13... Rfe8 {[%clk
0:01:53.1]} 14. Bd3 {[%clk 0:02:06.8]} 14... Ne4 {[%clk 0:01:42.2]} 15. Bxe4
{[%clk 0:02:04.9]} 15... Bxe4 {[%clk 0:01:39.4]} 16. Bg3 {[%clk 0:01:51.3]}
16... Rac8 {[%clk 0:01:38.1]} 17. Ne5 {[%clk 0:01:50.5]} 17... Nf8 {[%clk
0:01:22.6]} 18. Qa4 {[%clk 0:01:16.9]} 18... c4 {[%clk 0:01:04.1]} 19. Nd7
{[%clk 0:01:04.1]} 19... Nxd7 {[%clk 0:01:04]} 20. Qxd7 {[%clk 0:01:05]} 20...
Qb2 {[%clk 0:00:55.1]} 21. Rfc1 {[%clk 0:01:01.3]} 21... a6 {[%clk 0:00:47.8]}
22. a4 {[%clk 0:01:00.3]} 22... Rcd8 {[%clk 0:00:35.2]} 23. Qg4 {[%clk
0:00:51.5]} 23... Re6 {[%clk 0:00:28.9]} 24. a5 {[%clk 0:00:46.5]} 24... Rg6
{[%clk 0:00:27.7]} 25. Qh4 {[%clk 0:00:43.6]} 25... Re8 {[%clk 0:00:27.5]} 26.
Qf4 {[%clk 0:00:38.9]} 26... Rf6 {[%clk 0:00:22.6]} 27. Qc7 {[%clk 0:00:32.5]}
27... h5 {[%clk 0:00:20.6]} 28. Qd7 {[%clk 0:00:30.1]} 28... Rf8 {[%clk
0:00:18.5]} 29. f3 {[%clk 0:00:25.4]} 29... Bd3 {[%clk 0:00:13]} 30. Qxd5 {[%clk
0:00:19.3]} 30... Rh6 {[%clk 0:00:07.7]} 31. Bf4 {[%clk 0:00:13.3]} 31... Rg6
{[%clk 0:00:06.8]} 32. g3 {[%clk 0:00:06.3]} 32... h4 {[%clk 0:00:07]} 33. Qh5
{[%clk 0:00:04.1]} 33... hxg3 {[%clk 0:00:06.7]} 34. hxg3 {[%clk 0:00:04.7]}
34... Re8 {[%clk 0:00:05.6]} 35. Qh2 {[%clk 0:00:05.2]} 35... Qb3 {[%clk
0:00:04.8]} 36. g4 {[%clk 0:00:03.3]} 36... f6 {[%clk 0:00:04.7]} 37. Qf2 {[%clk
0:00:03.4]} 37... Kf7 {[%clk 0:00:04.3]} 38. Kg2 {[%clk 0:00:03.8]} 38... Rh8
{[%clk 0:00:02.5]} 39. Rh1 {[%clk 0:00:04]} 39... Rxh1 {[%clk 0:00:02.5]} 40.
Rxh1 {[%clk 0:00:04.9]} 40... Qxc3 {[%clk 0:00:03]} 41. e4 {[%clk 0:00:04.4]}
41... Qc2 {[%clk 0:00:03.2]} 42. d5 {[%clk 0:00:04.4]} 42... Qxf2+ {[%clk
0:00:03.2]} 43. Kxf2 {[%clk 0:00:05.3]} 43... c3 {[%clk 0:00:02.4]} 44. Ke3
{[%clk 0:00:05.3]} 44... Bb5 {[%clk 0:00:02.1]} 45. Rc1 {[%clk 0:00:05]} 45...
Ke8 {[%clk 0:00:01.7]} 46. Rxc3 {[%clk 0:00:05.6]} 46... Kd7 {[%clk 0:00:01.8]}
47. Rc7+ {[%clk 0:00:06.2]} 47... Kd8 {[%clk 0:00:02.2]} 48. Rxb7 {[%clk
0:00:06.9]} 1-0

[Event "Early-Titled-Tuesday-Blitz-October-17-2023"]
[Site "Chess.com"]
[Date "2023.10.17"]
[Round "2"]
[White "Byniolus"]
[Black "MidnightFox"]
[Result "1-0"]
[WhiteElo "2801"]
[BlackElo "2481"]
[TimeControl "180+1"]
[EndTime "8:19:51 PDT"]
[Termination "Byniolus won by checkmate"]

1. d4 {[%clk 0:03:00.9]} 1... Nf6 {[%clk 0:02:57.1]} 2. Nf3 {[%clk 0:03:00.6]}
2... g6 {[%clk 0:02:44.3]} 3. Bf4 {[%clk 0:03:00.4]} 3... Bg7 {[%clk 0:02:44.7]}
4. e3 {[%clk 0:03:01.2]} 4... O-O {[%clk 0:02:45.1]} 5. Be2 {[%clk 0:03:02]}
5... d6 {[%clk 0:02:45.2]} 6. h3 {[%clk 0:03:02.6]} 6... b6 {[%clk 0:02:45.3]}
7. O-O {[%clk 0:03:02.9]} 7... Bb7 {[%clk 0:02:45.4]} 8. c3 {[%clk 0:03:03.7]}
8... Nbd7 {[%clk 0:02:45.2]} 9. Nbd2 {[%clk 0:03:04.1]} 9... c5 {[%clk
0:02:45.4]} 10. Bh2 {[%clk 0:03:04.1]} 10... a6 {[%clk 0:02:45.2]} 11. a4 {[%clk
0:03:04.5]} 11... Rc8 {[%clk 0:02:44.3]} 12. Bd3 {[%clk 0:03:02.8]} 12... Rc7
{[%clk 0:02:43.9]} 13. Qe2 {[%clk 0:03:03.4]} 13... Qa8 {[%clk 0:02:43.7]} 14.
e4 {[%clk 0:03:04]} 14... Rcc8 {[%clk 0:02:29.1]} 15. e5 {[%clk 0:03:00.4]}
15... Nd5 {[%clk 0:02:23.6]} 16. e6 {[%clk 0:02:58.1]} 16... N7f6 {[%clk
0:02:16.8]} 17. exf7+ {[%clk 0:02:56.5]} 17... Rxf7 {[%clk 0:02:14.8]} 18. Ng5
{[%clk 0:02:51.8]} 18... Rff8 {[%clk 0:02:11.4]} 19. dxc5 {[%clk 0:02:43]} 19...
Rxc5 {[%clk 0:02:02.4]} 20. Ne6 {[%clk 0:02:38]} 20... Nh5 {[%clk 0:01:49.2]}
21. Nxc5 {[%clk 0:02:06.1]} 21... bxc5 {[%clk 0:01:45.1]} 22. Bc4 {[%clk
0:01:53.8]} 22... Kh8 {[%clk 0:01:42]} 23. Bxd5 {[%clk 0:01:47.4]} 23... Bxd5
{[%clk 0:01:41.4]} 24. f3 {[%clk 0:01:48]} 24... e5 {[%clk 0:01:33.7]} 25. Ne4
{[%clk 0:01:43.3]} 25... Qc6 {[%clk 0:01:12.3]} 26. Rfd1 {[%clk 0:01:37.8]}
26... Rd8 {[%clk 0:01:09.7]} 27. c4 {[%clk 0:01:29.2]} 27... Bg8 {[%clk
0:01:01.5]} 28. g3 {[%clk 0:00:58.3]} 28... Nf6 {[%clk 0:00:56.2]} 29. b3 {[%clk
0:00:49]} 29... Nxe4 {[%clk 0:00:46.9]} 30. fxe4 {[%clk 0:00:42.4]} 30... Be6
{[%clk 0:00:44.6]} 31. g4 {[%clk 0:00:28.4]} 31... Bf6 {[%clk 0:00:26.2]} 32.
Rd3 {[%clk 0:00:25.8]} 32... Bg5 {[%clk 0:00:17.5]} 33. Rad1 {[%clk 0:00:25.4]}
33... Qc7 {[%clk 0:00:15.1]} 34. Bg3 {[%clk 0:00:18]} 34... h6 {[%clk
0:00:12.4]} 35. Rxd6 {[%clk 0:00:14.9]} 35... Rxd6 {[%clk 0:00:07.2]} 36. Bxe5+
{[%clk 0:00:15.3]} 36... Kh7 {[%clk 0:00:07.4]} 37. Rxd6 {[%clk 0:00:13.4]}
37... Qf7 {[%clk 0:00:05.6]} 38. Qf2 {[%clk 0:00:11.5]} 38... Qe7 {[%clk
0:00:04]} 39. Qxc5 {[%clk 0:00:08.8]} 39... Bg8 {[%clk 0:00:03.9]} 40. Qd4
{[%clk 0:00:06.9]} 40... h5 {[%clk 0:00:04.1]} 41. Rd7 {[%clk 0:00:06.8]} 41...
Be3+ {[%clk 0:00:04.1]} 42. Kg2 {[%clk 0:00:04.8]} 42... Bxd4 {[%clk 0:00:04.3]}
43. Rxe7+ {[%clk 0:00:05.4]} 43... Kh6 {[%clk 0:00:04.6]} 44. Bxd4 {[%clk
0:00:05.5]} 44... Kg5 {[%clk 0:00:05.1]} 45. Be3+ {[%clk 0:00:05.7]} 45... Kh4
{[%clk 0:00:05.2]} 46. Rc7 {[%clk 0:00:06.6]} 46... a5 {[%clk 0:00:04.9]} 47.
Bf2+ {[%clk 0:00:06.5]} 47... Kg5 {[%clk 0:00:04.7]} 48. Be3+ {[%clk 0:00:07]}
48... Kh4 {[%clk 0:00:05.2]} 49. Rg7 {[%clk 0:00:07.2]} 49... hxg4 {[%clk
0:00:06.1]} 50. hxg4 {[%clk 0:00:07.1]} 50... g5 {[%clk 0:00:06.3]} 51. Bxg5+
{[%clk 0:00:06.6]} 51... Kxg4 {[%clk 0:00:06]} 52. Rxg8 {[%clk 0:00:07.1]} 52...
Kh5 {[%clk 0:00:05.5]} 53. Bd2 {[%clk 0:00:06.7]} 53... Kh4 {[%clk 0:00:05.6]}
54. c5 {[%clk 0:00:06.8]} 54... Kh5 {[%clk 0:00:05.4]} 55. c6 {[%clk 0:00:07.3]}
55... Kh4 {[%clk 0:00:06.3]} 56. c7 {[%clk 0:00:07.7]} 56... Kh5 {[%clk
0:00:07.2]} 57. c8=Q {[%clk 0:00:07.9]} 57... Kh4 {[%clk 0:00:08.1]} 58. Qh3#
{[%clk 0:00:08.5]} 1-0

[Event "Early-Titled-Tuesday-Blitz-October-17-2023"]
[Site "Chess.com"]
[Date "2023.10.17"]
[Round "2"]
[White "Makswolf200817"]
[Black "BJthechessgod"]
[Result "1/2-1/2"]
[WhiteElo "2696"]
[BlackElo "2384"]
[TimeControl "180+1"]
[EndTime "8:20:00 PDT"]
[Termination "Game drawn by repetition"]

1. e4 {[%clk 0:03:00.9]} 1... c5 {[%clk 0:02:57.8]} 2. Nf3 {[%clk 0:02:59.9]}
2... e6 {[%clk 0:02:53.3]} 3. d4 {[%clk 0:02:59.6]} 3... cxd4 {[%clk 0:02:54.2]}
4. Nxd4 {[%clk 0:02:58.9]} 4... Nc6 {[%clk 0:02:55.1]} 5. Nc3 {[%clk 0:02:56.4]}
5... Qc7 {[%clk 0:02:49]} 6. Be3 {[%clk 0:02:53.8]} 6... a6 {[%clk 0:02:39.7]}
7. a3 {[%clk 0:02:53.4]} 7... Nf6 {[%clk 0:02:38.6]} 8. Be2 {[%clk 0:02:51.6]}
8... Be7 {[%clk 0:02:33.4]} 9. O-O {[%clk 0:02:51.3]} 9... O-O {[%clk
0:02:28.1]} 10. f4 {[%clk 0:02:49.7]} 10... d6 {[%clk 0:02:27.9]} 11. Bf3 {[%clk
0:02:44.5]} 11... Bd7 {[%clk 0:02:23.2]} 12. Nb3 {[%clk 0:02:42.5]} 12... Rac8
{[%clk 0:02:20.9]} 13. Kh1 {[%clk 0:02:40.7]} 13... b5 {[%clk 0:02:19.1]} 14.
Qe2 {[%clk 0:02:34.4]} 14... Na5 {[%clk 0:02:14.1]} 15. Nxa5 {[%clk 0:02:32.4]}
15... Qxa5 {[%clk 0:02:15]} 16. e5 {[%clk 0:02:11.9]} 16... dxe5 {[%clk
0:01:52.6]} 17. fxe5 {[%clk 0:02:11.9]} 17... Ne8 {[%clk 0:01:52.9]} 18. Rad1
{[%clk 0:02:02.6]} 18... Bc6 {[%clk 0:01:52.9]} 19. Ne4 {[%clk 0:02:02.7]} 19...
Bd5 {[%clk 0:01:47.5]} 20. Qf2 {[%clk 0:01:34.8]} 20... Qc7 {[%clk 0:01:44.2]}
21. Qg3 {[%clk 0:01:27.9]} 21... Qxc2 {[%clk 0:01:35.7]} 22. Rd2 {[%clk
0:00:41.4]} 22... Qc6 {[%clk 0:01:29.2]} 23. Nf6+ {[%clk 0:00:37.3]} 23... Nxf6
{[%clk 0:01:23.8]} 24. exf6 {[%clk 0:00:34.2]} 24... Bxf6 {[%clk 0:01:24.7]} 25.
Bxd5 {[%clk 0:00:21.6]} 25... exd5 {[%clk 0:01:23.4]} 26. h3 {[%clk 0:00:20.4]}
26... Rfe8 {[%clk 0:01:03.1]} 27. Rdf2 {[%clk 0:00:20.4]} 27... Kh8 {[%clk
0:00:58.6]} 28. b4 {[%clk 0:00:12]} 28... Qc3 {[%clk 0:00:47.1]} 29. Rf3 {[%clk
0:00:10.5]} 29... Qe5 {[%clk 0:00:46]} 30. Bf4 {[%clk 0:00:10.4]} 30... Qh5
{[%clk 0:00:43.6]} 31. Bd2 {[%clk 0:00:08.5]} 31... d4 {[%clk 0:00:41.7]} 32.
Rf5 {[%clk 0:00:05]} 32... Qg6 {[%clk 0:00:41.2]} 33. Qf3 {[%clk 0:00:04.3]}
33... Rc2 {[%clk 0:00:40.3]} 34. Qd3 {[%clk 0:00:01.9]} 34... Ra2 {[%clk
0:00:37.9]} 35. g4 {[%clk 0:00:02.3]} 35... h6 {[%clk 0:00:37.7]} 36. Bf4 {[%clk
0:00:01.3]} 36... Ree2 {[%clk 0:00:31.5]} 37. Bg3 {[%clk 0:00:01.1]} 37... Rad2
{[%clk 0:00:27.7]} 38. Qf3 {[%clk 0:00:01.9]} 38... d3 {[%clk 0:00:26.7]} 39.
Qa8+ {[%clk 0:00:01.9]} 39... Kh7 {[%clk 0:00:27.4]} 40. Bf4 {[%clk 0:00:02.5]}
40... Bg5 {[%clk 0:00:21.8]} 41. Bxd2 {[%clk 0:00:02.4]} 41... Rxd2 {[%clk
0:00:22.1]} 42. Qd5 {[%clk 0:00:02.8]} 42... f6 {[%clk 0:00:20.6]} 43. Qe4
{[%clk 0:00:02.5]} 43... Kh8 {[%clk 0:00:11.2]} 44. Qa8+ {[%clk 0:00:02.1]}
44... Kh7 {[%clk 0:00:11.4]} 45. Qd5 {[%clk 0:00:02.9]} 45... Qe8 {[%clk
0:00:11.2]} 46. R5f2 {[%clk 0:00:02.3]} 46... Rxf2 {[%clk 0:00:10.8]} 47. Rxf2
{[%clk 0:00:03.2]} 47... Qe1+ {[%clk 0:00:11.3]} 48. Kg2 {[%clk 0:00:03.9]}
48... d2 {[%clk 0:00:12.2]} 49. Qf5+ {[%clk 0:00:04.3]} 49... Kh8 {[%clk
0:00:12.4]} 50. Qc8+ {[%clk 0:00:04.8]} 50... Kh7 {[%clk 0:00:12.9]} 51. Qc2+
{[%clk 0:00:03.6]} 51... Kg8 {[%clk 0:00:12.4]} 52. Qc8+ {[%clk 0:00:02.4]}
52... Kf7 {[%clk 0:00:12.3]} 53. Qd7+ {[%clk 0:00:02.6]} 53... Kf8 {[%clk
0:00:12.4]} 54. Qd8+ {[%clk 0:00:02.4]} 54... Kf7 {[%clk 0:00:12.5]} 55. Qd7+
{[%clk 0:00:03.1]} 55... Kg8 {[%clk 0:00:13.1]} 56. Qc8+ {[%clk 0:00:02.7]}
56... Kh7 {[%clk 0:00:09.4]} 57. Qf5+ {[%clk 0:00:02.5]} 57... Kh8 {[%clk
0:00:07.3]} 58. Qc8+ {[%clk 0:00:02]} 58... Kh7 {[%clk 0:00:07]} 1/2-1/2